Cogmind - Beta 14 @@@ ROGUE MODE // 2024.09.27 @ 05:17:07 Player: Carpathian Result: Destroyed by L-31 Rogue with Katana Performance ------------- Evolutions (0) 0 Regions Visited (4) 800 Robots Destroyed (7) 35 Value Destroyed (174) 174 Prototype IDs (0) 0 Alien Tech Used (0) 0 Bonus (300) 300 TOTAL SCORE: 1309 Bonus ------- Aligned with FarCom 300 Cogmind --------- Core Integrity 0/250 Matter 278/300 Energy 263/265 System Corruption 0% Temperature Cool (34) Movement Core (250) Ox4 Location -9/Mines Parts ------- > --- POWER (1) -------- Improved Ion Engine > --- PROPULSION (2) --- (None) > --- UTILITY (2) ------ Small Storage Unit Targeting Computer > --- WEAPON (2) ------- Light Assault Rifle Light Assault Rifle > --- INVENTORY (8) ---- Light Ion Engine Light Treads High-capacity Storage Unit Medium Laser Peak State ------------ > --- POWER ------------ Improved Ion Engine > --- PROPULSION ------- Light Treads Light Treads > --- UTILITY ---------- Small Storage Unit Targeting Computer > --- WEAPON ----------- Medium Laser Beam Rifle > --- INVENTORY -------- Light Ion Engine Light Treads High-capacity Storage Unit Light Assault Rifle [Rating: 9] Favorites ----------- Power Improved Ion Engine Engine Improved Ion Engine Propulsion Light Treads Treads Light Treads Leg Aluminum Leg Utility Small Storage Unit Storage Small Storage Unit Processor Targeting Computer Weapon Light Assault Rifle Energy Gun Medium Laser Ballistic Gun Light Assault Rifle Build | -11 -10 -10 -10 -9 ------- Run | Yrd Mat Min Exi Min Slots Evolved . | . . . . . Power . | . . . . . Propulsion . | . . . . . Utility . | . . . . . Weapon . | . . . . . Parts Attached 14 | 6 1 4 . 3 Power 2 | 1 . 1 . . Engine 2 | 1 . 1 . . Core . | . . . . . Reactor . | . . . . . Propulsion 4 | 2 . 2 . . Treads 2 | . . 2 . . Leg 2 | 2 . . . . Wheel . | . . . . . Hover . | . . . . . Flight . | . . . . . Utility 2 | 1 1 . . . Device . | . . . . . Storage 1 | 1 . . . . Processor 1 | . 1 . . . Hackware . | . . . . . Protection . | . . . . . Artifact . | . . . . . Weapon 6 | 2 . 1 . 3 Energy Gun 2 | . . 1 . 1 Energy Cannon . | . . . . . Ballistic Gun 4 | 2 . . . 2 Ballistic Cannon . | . . . . . Launcher . | . . . . . Special Weapon . | . . . . . Impact Weapon . | . . . . . Slashing Weapon . | . . . . . Piercing Weapon . | . . . . . Special Melee Weapon . | . . . . . Unidentified Prototypes . | . . . . . Parts Lost 6 | . . 3 . 3 Power 1 | . . 1 . . Propulsion 3 | . . 1 . 2 Utility . | . . . . . Weapon 2 | . . 1 . 1 Highest Loss Streak 3 | . . 3 . 3 To Critical Strikes . | . . . . . Average Slot Usage (%) 96 | . 89 97 100 85 Engine 13 | . 14 12 14 14 Treads 17 | . . 8 28 14 Leg 8 | . 28 18 . . Storage 14 | . 14 14 14 14 Processor 13 | . 4 14 14 14 Energy Gun 9 | . . 4 14 16 Ballistic Gun 18 | . 28 23 14 11 Peak Build Rating 9 | 6 7 8 8 9 Average Rating 7 | 4 6 7 8 7 On Entrance 5 | . 6 7 8 8 Naked Turns . | . . . . . Heaviest Build 17 | 13 13 15 15 17 Greatest Support 40 | 20 20 40 40 40 Greatest Overweight (x) 4 | . . . . 4 Average Overweight (x) . | . . . . 1 Largest Inventory Capacity 8 | 8 8 8 8 8 Average Capacity 7 | 6 8 8 8 8 Most Carried 6 | 5 5 6 4 4 Average Carried 4 | 3 4 4 4 3 Final Capacity 8 | 8 8 8 8 8 Final Carried 4 | 4 4 4 4 4 Class Distribution -------------------- 100% | Mutant Dominant Class ---------------- Mutant | -10/Materials Mutant | -10/Mines Mutant | -10/Exiles Mutant | -9/Mines Resources | -11 -10 -10 -10 -9 ----------- Run | Yrd Mat Min Exi Min Matter Collected 395 | 260 . 121 . 14 Remotely . | . . . . . Salvage Created 241 | . . 165 . 76 Parts 14 | . . 11 . 3 Haulers Intercepted . | . . . . . Recyclers Shooed . | . . . . . Parts Field Recycled . | . . . . . Retrieved Matter . | . . . . . Parts Self-Destructed . | . . . . . Prevented . | . . . . . Kills | -11 -10 -10 -10 -9 ------- Run | Yrd Mat Min Exi Min Combat Hostiles Destroyed 9 | . . 5 . 4 Guns 9 | . . 5 . 4 Classes Destroyed 5 | . . 2 . 3 Worker 1 | . . . . 1 Swarmer 3 | . . 3 . . Sentry 2 | . . 2 . . Demolisher 1 | . . . . 1 Assembled 3 | . . . . 3 Best Kill Streak 3 | . . 2 . 3 Combat Bots Only 2 | . . 2 . 2 Max Kills in Single Turn 1 | . . 1 . 1 Gunslinging . | . . . . . Exploded . | . . . . . Melee . | . . . . . Uniques/NPCs Destroyed . | . . . . . Combat | -11 -10 -10 -10 -9 -------- Run | Yrd Mat Min Exi Min Hostile Shots Fired 92 | . . 60 . 32 Missed 21 | . . 18 . 3 Damage Taken 1130 | . . 567 . 563 Core 278 | . . 135 . 143 Absorbed by Shields . | . . . . . Core Remaining (%) 100 | 100 . . . . Volleys Fired 45 | . . 23 . 22 Largest 2 | . . 2 . 2 Hottest 106 | . . 40 . 106 Shots Fired 78 | . . 44 . 34 Gun 78 | . . 44 . 34 Cannon . | . . . . . Launcher . | . . . . . Special . | . . . . . Kinetic 61 | . . 44 . 17 Thermal 17 | . . . . 17 Explosive . | . . . . . Electromagnetic . | . . . . . Robot Hit Streak 20 | . . 14 . 20 Robot Miss Streak 7 | . . 3 . 7 Penetration Max . | . . . . . Secondary Targets 2 | . . . . 2 Max Gunslinging Chain 1 | . . . . 1 Shots Hit Robots 53 | . . 33 . 20 Core Hits 22 | . . 9 . 13 Critical Kills . | . . . . . Critical Parts Destroyed . | . . . . . Critical Strikes . | . . . . . Melee Attacks . | . . . . . Impact . | . . . . . Slashing . | . . . . . Piercing . | . . . . . Sneak Attacks . | . . . . . Combat Hostiles . | . . . . . Follow-up Attacks . | . . . . . Damage Inflicted 554 | . . 330 . 224 Guns 539 | . . 330 . 209 Cannons . | . . . . . Explosions . | . . . . . Melee . | . . . . . Ramming 15 | . . . . 15 Kinetic 430 | . . 330 . 100 Thermal 109 | . . . . 109 Explosive . | . . . . . Electromagnetic . | . . . . . Impact . | . . . . . Slashing . | . . . . . Piercing . | . . . . . Highest Corruption . | . . . . . Average Corruption . | . . . . . Corruption Purged . | . . . . . Corruption Blocked . | . . . . . Overload Shots . | . . . . . Overflow Damage . | . . . . . Projectiles . | . . . . . Explosions . | . . . . . Melee . | . . . . . Knockbacks . | . . . . . Impact . | . . . . . Kinetic . | . . . . . Secondary . | . . . . . Self-Inflicted Damage . | . . . . . Shots . | . . . . . Rammed 7 | . . . . 7 Targets Rammed 7 | . . . . 7 Kicked . | . . . . . Crushed . | . . . . . Highest Temperature 288 | . . 45 . 288 Average Temperature 106 | . . 15 . 136 Received Heat Transfer 307 | . . 207 . 100 Effects 1 | . . . . 1 Interference 1 | . . . . 1 Siege Activations . | . . . . . Robots Corrupted . | . . . . . Combat Hostiles . | . . . . . Parts Fried . | . . . . . Impact Corruptions . | . . . . . Robots Melted . | . . . . . Combat Hostiles . | . . . . . Parts Melted . | . . . . . Heat Transferred 296 | . . . . 296 Parts Sabotaged . | . . . . . Parts Stolen . | . . . . . Parts Stripped . | . . . . . Power Chain Reactions . | . . . . . Alert | -11 -10 -10 -10 -9 ------- Run | Yrd Mat Min Exi Min Peak Influence 143 | . 9 143 . 25 Initial 3 | . . 3 . . Average 48 | . 6 81 . 4 Maximum Alert Level . | . . . . . Low Security (%) 100 | 100 100 100 . 100 Level 1 . | . . . . . Level 2 . | . . . . . Level 3 . | . . . . . Level 4 . | . . . . . Level 5 . | . . . . . High Security . | . . . . . Max Security . | . . . . . Squads Dispatched . | . . . . . Investigation . | . . . . . Extermination . | . . . . . Reinforcement . | . . . . . Assault . | . . . . . Garrison . | . . . . . Intercept . | . . . . . Searches Triggered . | . . . . . Construction Impeded . | . . . . . Haulers Reinforced . | . . . . . Active Scanning Responses . | . . . . . Cargo Convoy Interrupts . | . . . . . Stealth | -11 -10 -10 -10 -9 --------- Run | Yrd Mat Min Exi Min Distress Signals . | . . . . . Communications Jammed . | . . . . . Distress Signals . | . . . . . Times Spotted 25 | . . 7 . 18 Peak Tracking Total 15 | . . 3 . 15 Tactical Retreats 1 | . . 1 . . Traps | -11 -10 -10 -10 -9 ------- Run | Yrd Mat Min Exi Min Traps Triggered . | . . . . . Indirectly . | . . . . . Trap Hack Attempts . | . . . . . Triggered . | . . . . . Disarmed . | . . . . . Reprogrammed . | . . . . . Reused . | . . . . . Traps Extracted . | . . . . . Installed . | . . . . . Triggered . | . . . . . Machines | -11 -10 -10 -10 -9 ---------- Run | Yrd Mat Min Exi Min Machines Disabled . | . . . . . Max in Single Turn . | . . . . . Machines Repaired . | . . . . . Machines Dismantled . | . . . . . Machines Sabotaged . | . . . . . Overloaded Fab Kills . | . . . . . Hacking | -11 -10 -10 -10 -9 --------- Run | Yrd Mat Min Exi Min Machines Accessed 5 | . 3 . 2 . Terminals 3 | . 3 . . . Fabricators . | . . . . . Repair Stations . | . . . . . Recycling Units . | . . . . . Scanalyzers . | . . . . . Garrison Access . | . . . . . Total Hacks 13 | . 11 . 2 . Successful 9 | . 7 . 2 . Failed 4 | . 4 . . . Catastrophic . | . . . . . Database Lockouts . | . . . . . Manual 1 | . . . 1 . Terminals 11 | . 11 . . . Fabricators . | . . . . . Repair Stations . | . . . . . Recycling Units . | . . . . . Scanalyzers . | . . . . . Garrison Access . | . . . . . Terminal Hacks 9 | . 7 . 2 . Record 6 | . 4 . 2 . Alert Level 1 | . 1 . . . Investigation Status 1 | . 1 . . . Hauler Manifests 1 | . 1 . . . Fabricator Hacks . | . . . . . Repair Station Hacks . | . . . . . Recycling Unit Hacks . | . . . . . Scanalyzer . | . . . . . Garrison Access Hacks . | . . . . . Unauthorized Hacks . | . . . . . Terminals . | . . . . . Fabricators . | . . . . . Repair Stations . | . . . . . Recycling Units . | . . . . . Scanalyzers . | . . . . . Garrison Access . | . . . . . Data Cores Recovered . | . . . . . Used . | . . . . . Hacking Detections 2 | . 2 . . . Full Trace Events . | . . . . . Feedback Events . | . . . . . Feedback Blocked . | . . . . . Robot Schematics Acquired . | . . . . . Robots Built . | . . . . . Authchips . | . . . . . Time . | . . . . . Total Robot Build Rating . | . . . . . Part Schematics Acquired . | . . . . . Parts Built . | . . . . . Authchips . | . . . . . Time . | . . . . . Total Part Build Rating . | . . . . . Parts Repaired . | . . . . . Time . | . . . . . Parts Recycled . | . . . . . Recycled Matter . | . . . . . Retrieved Matter . | . . . . . Retrieved Components . | . . . . . Parts Scanalyzed . | . . . . . Part Schematics Acquired . | . . . . . Parts Damaged . | . . . . . Bothacking | -11 -10 -10 -10 -9 ------------ Run | Yrd Mat Min Exi Min Used RIF Installer . | . . . . . Robots Hacked . | . . . . . Non-combat . | . . . . . Combat . | . . . . . Robot Hacks Applied . | . . . . . Relay Couplers Released . | . . . . . Fabnet Peak Effective % . | . . . . . Robots Rewired . | . . . . . Allies Hacked . | . . . . . Hacks Repelled . | . . . . . Allies | -11 -10 -10 -10 -9 -------- Run | Yrd Mat Min Exi Min Total Allies . | . . . . . Largest Group . | . . . . . Highest-Rated Group . | . . . . . Highest-Rated Ally . | . . . . . Total Orders . | . . . . . Ally Attacks . | . . . . . Total Damage . | . . . . . Kills . | . . . . . Allies Corrupted . | . . . . . Allies Melted . | . . . . . Intel | -11 -10 -10 -10 -9 ------- Run | Yrd Mat Min Exi Min Robot Analysis Total . | . . . . . Derelict Logs Recovered . | . . . . . Drone Launches . | . . . . . Drone Recoveries . | . . . . . Exploration | -11 -10 -10 -10 -9 ------------- Run | Yrd Mat Min Exi Min Turns Passed 1566 | 70 145 489 701 161 Spaces Moved 977 | 57 120 318 439 43 Core 37 | 19 . . . 18 Treads 557 | . . 93 439 25 Legs 383 | 38 120 225 . . Wheels . | . . . . . Hover . | . . . . . Flight . | . . . . . Fastest Speed 50 | 50 120 120 160 160 Average Speed 143 | 96 120 131 160 197 Slowest Speed 250 | 120 120 160 160 250 Overloaded Moves . | . . . . . Propulsion Burnouts . | . . . . . Robots Hopped . | . . . . . Cave-ins Triggered . | . . . . . Exploration Rate (%) 35 | 4 23 52 78 19 Regions Visited 4 Branch Regions 3 Pre-discovered Areas . | . . . . . Known Exits Taken . | . . . . . Unknown Exits Taken 4 | 1 1 1 1 . Scrap Searched 1 | . . 1 . . Spaces Dug . | . . . . . Terrain Destroyed . | . . . . . Melee . | . . . . . Projectile . | . . . . . AOE . | . . . . . Terrain Rammed . | . . . . . Walls Destroyed . | . . . . . Machines Disabled . | . . . . . Actions | -11 -10 -10 -10 -9 --------- Run | Yrd Mat Min Exi Min Total 1065 | 72 121 349 438 85 Wait 9 | . . . . 9 Move 973 | 56 119 317 438 43 Hop . | . . . . . Pick Up 16 | 10 1 4 . 1 Fast Attach . | . . . . . Attach 11 | 6 1 3 . 1 Detach . | . . . . . Swap 3 | . . 1 . 2 Drop 1 | . . 1 . . Fire 45 | . . 23 . 22 Melee . | . . . . . Ram . | . . . . . Kick . | . . . . . Crush 7 | . . . . 7 Escape Stasis . | . . . . . Rewire . | . . . . . Trap . | . . . . . Miscellaneous . | . . . . . Route ------- -11/Scrapyard -10/Materials (discovered 2 exits: [*Min x2]) -10/Mines -10/Exiles -9/Mines History --------- Turn | Location | Event 8 | -11/Scrapyard | Discovered new exit (range 15) 71 | -11/Scrapyard | Entered Materials 76 | -10/Materials | Discovered new exit (range 16) 190 | -10/Materials | Discovered new exit (range 16) 216 | -10/Materials | Entered Mines 307 | -10/Mines | Build established: Mutant 543 | -10/Mines | Core integrity fell below 50% 570 | -10/Mines | Lost 3 parts (1p1n1w) 694 | -10/Mines | Deemed a non-threat by the Exiles lab entrance 695 | -10/Mines | Discovered new exit (range 5) 705 | -10/Mines | Entered Exiles 747 | -10/Exiles | Met 8R-AWN 782 | -10/Exiles | Met EX-HEX 901 | -10/Exiles | Met EX-DEC 969 | -10/Exiles | Visited The Gauntlet 1073 | -10/Exiles | Met EX-BIN 1099 | -10/Exiles | Aligned with FarCom system 1101 | -10/Exiles | Given EX-Vault access code 1387 | -10/Exiles | Discovered new exit (range 14) 1406 | -10/Exiles | Entered Mines 1418 | -9/Mines | Assembled infested the area 1492 | -9/Mines | Core integrity fell below 20% 1534 | -9/Mines | Lost 3 parts (2n1w) 1567 | -9/Mines | Destroyed by L-31 Rogue with Katana Last Messages --------------- 01504_ K-01 Serf collects debris. 01504_ as-47078 destroyed. 01505_ The unstable cave ceiling collapses. 01506_ Acquired 1 matter. 01508_ K-01 Serf collects debris. 01512_ The unstable cave ceiling collapses. 01512_ K-01 Serf collects debris. 01523_ The unstable cave ceiling collapses. 01524_ U-05 Engineer lays Concrete. 01525_ U-05 Engineer builds a Wall. 01526_ The unstable cave ceiling collapses. 01526_ K-01 Serf crushed by falling debris. 01526_ K-01 Serf system corrupted by crushing effect. 01526_ K-01 Serf destroyed. 01529_ K-01 Serf collects debris. 01539_ Acquired Lgt. Assault Rifle. 01539_ K-01 Serf collects debris. 01559_ Critical hit (Burn: +80). 01561_ as-48624 destroyed. 01561_ Switching to secondary target: L-31 Rogue. Map ----- +----------------------------------------------------+ | ##########?????????????????? ????????????????????? | | # #???????????????? ???????????????????? | | # ####????????????# ????????????????????? | | # #??????????? ????????????????????? | | # """ ## #??????????? ???? ???????????????? | | # """ ## #?????????? #??# ???????????????? | | # """ ## #?????????? #?# #??????????????? | | # ## ##?###????? ## #??????????????? | | ?########## # ## ##???? #???????????????? | | ?????????## # ######?? #????????????????? | | ?????????# # # ### #????????????????? | | ?????????# % % # # # # #????????????????? | | ?????????# # %# #?????????????????? | | ?????????## # % #??????????????????? | | ??????????# # #???????????????????? | | ??????????# ##???????????????????? | | ????????# # ###????????????????????? | | ????????# #### ## % %% ##??????????????????????? | | ????????# ???# ### % #??????????????????????? | | ????????#????# #?# ##??????????????????????? | | ?????????????# #### % #???????????????????????? | | ?????????????# %####???????????????????????? | | ?????????????#######*%#??????????????????????????? | | ??????????????###### r#####??????????????????????? | | ???????# % % #??????????????????????? | | ???????????"" """ " " """@#??????????????????????? | | ????????????" """ """ """l#??????????????????????? | | ????????????? """ """ """ #??????????????????????? | | ????????????? #??????????????????????? | | ????????????? """ """ """g#??????????????????????? | | ????????????? """ """ """ #??????????????????????? | | ????????????????" """ """ #??????????????????????? | | ???????????????????? #??????????????????????? | | ???????????????????? ??????????????????????? | | ???????????????????? ? #??????????????????????? | | ?????????????????????##?##???????????????????????? | | ?????????????????????????????????????????????????? | | ?????????????????????????????????????????????????? | | | | | | | | | | | | | | | | | | | | | | | | | +----------------------------------------------------+ Best States ------------- Heat Dissipation 25 Energy Generation 12 Energy Capacity 265 Matter Stores 300 Matter Capacity 300 Sight Range 16 Terrain Scan Density 10 Evasion (%) 55 Targeting Accuracy 5 Recoil Reduction 2 Item Schematics ----------------- None Robot Schematics ------------------ None Fabricated ------------ Nothing Alien Tech Used ----------------- None Achievements -------------- None Challenges ------------ None Game ------ Seed AutogunVampiricCharger Manual? 0 Play Time 00:10:38 Cumulative 22.0 hours Start 2024.09.27 @ 05:07:50 End 2024.09.27 @ 05:17:07 Sessions 1 Manual Loads 0 Difficulty Rogue Special Mode None Game No. 124 Rogue 124 Adventurer 0 Explorer 0 Win Type - Total 0 Types 0/0/0/0/0/0/0/0/0 Lore% 5 Gallery% 21 Achievement% 16 Wizard Run 0 Options --------- Layout 0 ASCII 0 Keyboard 0 Movement Arrows Keybinds 0 Fullscreen 2 Font 24/Cog Map View 76x50 Zoom Use 0% Tactical HUD 1 Map Filters NONE Filters NONE Steam 1 RUN: 882eaf98-b17d-40cc-b9df-9b080df85127